bitfinex/quotes_SOLUSD_20241019
["timestamp","ask_amount","ask_price","bid_price","bid_amount"]
[1729379301979,6.3015,158.69,158.6,16.0422]
[1729379302691,20.0,158.71,158.6,16.0422]
[1729379302872,6.3013,158.7,158.6,16.0422]
[1729379303600,6.3016,158.69,158.6,16.0422]
[1729379309590,20.0,158.71,158.61,23.776884]
[1729379309781,16.5744,158.72,158.62,20.0]
[1729379310104,6.5684663,158.73,158.66,16.0025]
[1729379310282,15.5591,158.76,158.67,23.776884]
[1729379316895,6.3938,158.78,158.67,23.776884]
[1729379316896,6.298,158.78,158.67,23.876884]
[1729379317092,6.2976,158.79,158.69,23.776884]
[1729379318714,21.8563,158.8,158.69,23.776884]
[1729379319010,21.8563,158.8,158.7,6.2388]
[1729379320188,21.8563,158.8,158.71,23.776884]
[1729379320389,15.5591,158.8,158.71,23.776884]
[1729379320803,15.5591,158.8,158.71,23.876884]
[1729379322703,6.2964,158.82,158.73,23.776884]
[1729379323084,15.5591,158.84,158.72,16.0025]
[1729379323286,6.2968,158.81,158.72,16.0025]
[1729379325820,6.2968,158.81,158.73,23.776884]
[1729379326329,6.2964,158.82,158.73,23.776884]
[1729379328219,6.2968,158.81,158.73,23.276884]
[1729379330801,26.2963,158.83,158.73,23.276884]
[1729379331126,6.2964,158.82,158.73,23.276884]
[1729379331925,6.2971,158.81,158.72,16.0025]
[1729379333622,6.2972,158.8,158.72,16.0025]
[1729379340521,6.2964,158.82,158.73,23.776884]
[1729379341144,21.8547,158.84,158.74,20.0]
[1729379341351,21.8547,158.84,158.75,23.776884]
[1729379342342,15.5591,158.84,158.75,23.876884]
[1729379342543,15.5591,158.84,158.76,20.0]
[1729379342743,15.5591,158.84,158.77,23.776884]
[1729379342939,6.295,158.86,158.77,23.776884]
[1729379346054,15.1069,158.88,158.77,23.776884]
[1729379346260,15.1069,158.88,158.77,23.876884]
[1729379346450,6.1371,158.9,158.79,23.876884]
[1729379347340,12.4304,158.9,158.79,23.876884]
[1729379355844,6.2936,158.89,158.79,23.876884]
[1729379356762,6.1371,158.9,158.8,0.1]
[1729379356958,26.2928,158.91,158.8,20.1]
[1729379357264,26.2928,158.91,158.81,23.876884]
[1729379359843,15.1069,158.92,158.83,23.776884]
[1729379360038,21.3993,158.92,158.83,23.776884]
[1729379372702,21.3993,158.92,158.83,24.186884]
[1729379381385,21.3993,158.92,158.84,2.14659506]
[1729379381585,15.1069,158.92,158.85,23.776884]
[1729379381897,6.2913,158.95,158.85,23.776884]
[1729379382094,6.2913,158.95,158.86,2.14590203]
[1729379384299,6.2913,158.95,158.86,25.92208285]
[1729379384609,6.2913,158.95,158.86,23.776884]
[1729379385777,21.9144,158.96,158.86,23.776884]
[1729379387788,15.6235,158.96,158.86,23.776884]
[1729379390110,15.6235,158.96,158.87,2.14372135]
[1729379391413,15.6235,158.96,158.86,23.776884]
[1729379392601,15.6235,158.96,158.87,2.14350099]
[1729379398511,15.6235,158.96,158.88,23.776884]
[1729379398716,21.9145,158.96,158.86,23.876884]
[1729379399018,15.6235,158.96,158.88,23.776884]
[1729379399333,15.6235,158.96,158.89,2.14459652]
[1729379400127,15.6235,158.96,158.88,23.776884]
[1729379400326,15.6235,158.96,158.89,2.14461296]
[1729379403932,15.6235,158.96,158.89,2.14461296]
[1729379406438,15.6235,158.96,158.89,2.14660539]
[1729379409918,15.6235,158.96,158.88,23.776884]
[1729379410119,15.6235,158.96,158.89,2.14606602]
[1729379410815,93.495689,159.0,158.9,25.92295002]
[1729379411030,93.495689,159.0,158.91,2.14606602]
[1729379417931,93.495689,159.0,158.91,2.14451336]
[1729379418952,6.2906,158.97,158.91,2.14451336]
[1729379419237,6.2906,158.97,158.88,2.14451336]
[1729379419741,6.2901,158.98,158.88,2.14451336]
[1729379420224,6.2901,158.98,158.89,2.14451336]
[1729379420425,6.2901,158.98,158.88,2.14451336]
[1729379420629,6.2901,158.98,158.89,2.14451336]
[1729379420835,6.2901,158.98,158.88,2.14451336]
[1729379421021,6.2901,158.98,158.89,2.14451336]
[1729379421215,6.2901,158.98,158.88,2.14451336]
[1729379421432,6.2901,158.98,158.89,2.14451336]
[1729379421626,6.2901,158.98,158.88,2.14451336]
[1729379421827,6.2901,158.98,158.89,2.14451336]
[1729379422051,6.2901,158.98,158.88,2.14451336]
[1729379422257,6.2901,158.98,158.89,2.14451336]
[1729379422457,6.2901,158.98,158.88,2.14451336]
[1729379422632,6.2901,158.98,158.89,2.14451336]
[1729379422834,6.2901,158.98,158.88,2.14451336]
[1729379423164,6.2901,158.98,158.89,2.14451336]
[1729379423460,6.2901,158.98,158.88,2.14451336]
[1729379423654,6.2901,158.98,158.89,2.14451336]
[1729379423856,6.2901,158.98,158.88,2.14451336]
[1729379424058,6.2901,158.98,158.89,2.14451336]
[1729379424245,6.2901,158.98,158.9,2.14451336]
[1729379424429,6.2901,158.98,158.88,2.14451336]
[1729379424763,6.2901,158.98,158.89,2.14451336]
[1729379424929,6.2901,158.98,158.88,23.776884]
[1729379425130,6.2901,158.98,158.89,2.14640403]
[1729379425330,6.2901,158.98,158.9,2.14640403]
[1729379425555,6.2901,158.98,158.89,2.14640403]
[1729379425756,6.2901,158.98,158.9,2.14640403]
[1729379425956,6.2901,158.98,158.89,2.14640403]
[1729379426154,6.2901,158.98,158.9,2.14640403]
[1729379426364,6.2901,158.98,158.89,2.14705523]
[1729379426662,26.2897,158.99,158.9,2.14705523]
[1729379426863,26.2897,158.99,158.89,2.14705523]
[1729379427029,26.2897,158.99,158.9,2.14705523]
[1729379427232,26.2897,158.99,158.89,2.14705523]
[1729379427441,26.2897,158.99,158.9,2.14705523]
[1729379427766,26.2897,158.99,158.89,2.14705523]
[1729379427963,26.2897,158.99,158.9,2.14705523]
[1729379428254,26.2897,158.99,158.88,23.776884]
[1729379428255,26.2897,158.99,158.91,2.14705523]
[1729379428450,26.2897,158.99,158.89,2.14767491]
[1729379428757,26.2897,158.99,158.9,2.14767491]
[1729379428960,26.2897,158.99,158.91,2.14767491]
[1729379429165,26.2897,158.99,158.89,2.14767491]
[1729379429461,26.2897,158.99,158.9,2.14767491]
[1729379429644,26.2897,158.99,158.91,2.14767491]
[1729379429847,26.2897,158.99,158.89,2.14767491]
[1729379430067,26.2897,158.99,158.9,2.14767491]
[1729379430247,26.2897,158.99,158.91,2.14767491]
[1729379430445,26.2897,158.99,158.89,2.14767491]
[1729379430651,26.2897,158.99,158.9,2.14767491]
[1729379430848,26.2897,158.99,158.91,2.14767491]
[1729379431149,26.2897,158.99,158.89,2.14767491]
[1729379431349,26.2897,158.99,158.88,23.776884]
[1729379431350,26.2897,158.99,158.9,2.14767491]
[1729379431548,26.2897,158.99,158.91,2.14767491]
[1729379431855,26.2897,158.99,158.89,2.14767491]
[1729379432063,26.2897,158.99,158.9,2.14767491]
[1729379432362,26.2897,158.99,158.91,2.14884052]
[1729379432575,26.2897,158.99,158.92,2.14884052]
[1729379432762,26.2897,158.99,158.89,2.14884052]
[1729379433061,26.2897,158.99,158.9,2.14884052]
[1729379433260,26.2897,158.99,158.91,2.14884052]
[1729379433468,26.2897,158.99,158.92,2.14884052]
[1729379433640,26.2897,158.99,158.89,2.14884052]
[1729379433840,26.2897,158.99,158.9,2.14884052]
[1729379434057,26.2897,158.99,158.91,2.14884052]
[1729379434257,26.2897,158.99,158.92,2.14884052]
[1729379434463,26.2897,158.99,158.89,2.14884052]
[1729379434646,26.2897,158.99,158.9,2.14884052]
[1729379434971,26.2897,158.99,158.88,23.776884]
[1729379434972,26.2897,158.99,158.91,2.14884052]
[1729379435160,26.2897,158.99,158.92,2.14884052]
[1729379435371,26.2897,158.99,158.93,2.14884052]
[1729379435537,26.2897,158.99,158.89,2.14884052]
[1729379435835,26.2897,158.99,158.9,2.14884052]
[1729379436036,26.2897,158.99,158.91,2.14884052]
[1729379436232,26.2897,158.99,158.92,2.14884052]
[1729379436445,26.2897,158.99,158.93,2.14884052]
[1729379436645,26.2897,158.99,158.89,2.14884052]
[1729379436869,26.2897,158.99,158.9,2.14884052]
[1729379437057,26.2897,158.99,158.91,2.14884052]
[1729379437257,26.2897,158.99,158.92,2.14884052]
[1729379437461,26.2897,158.99,158.93,2.14884052]
[1729379437669,26.2897,158.99,158.88,23.776884]
[1729379437846,26.2897,158.99,158.89,2.15210629]
[1729379438051,26.2897,158.99,158.9,2.15210629]
[1729379438247,26.2897,158.99,158.91,2.15210629]
[1729379438483,26.2897,158.99,158.92,2.15210629]
[1729379438682,26.2897,158.99,158.93,2.15210629]
[1729379438853,26.2897,158.99,158.94,2.15210629]
[1729379439174,26.2897,158.99,158.88,23.776884]
[1729379439350,26.2897,158.99,158.89,2.15344452]
[1729379439551,26.2897,158.99,158.9,2.15344452]
[1729379439771,26.2897,158.99,158.91,2.15344452]
[1729379440073,26.2897,158.99,158.88,23.776884]
[1729379440074,26.2897,158.99,158.92,2.15344452]
[1729379440260,26.2897,158.99,158.93,2.15344452]
[1729379440466,26.2897,158.99,158.88,23.776884]
[1729379440467,20.0,158.99,158.94,2.15344452]
[1729379440670,93.495689,159.0,158.95,2.15446445]
[1729379440985,93.495689,159.0,158.9,23.776884]
[1729379441274,93.495689,159.0,158.91,2.15435107]
[1729379441469,93.495689,159.0,158.92,2.15435107]
[1729379441678,93.495689,159.0,158.93,2.15435107]
[1729379441875,93.495689,159.0,158.94,2.15435107]
[1729379442077,93.495689,159.0,158.95,2.15435107]
[1729379442378,93.495689,159.0,158.96,2.15435107]
[1729379442584,93.495689,159.0,158.9,23.776884]
[1729379442787,93.495689,159.0,158.91,2.15534764]
[1729379443084,93.495689,159.0,158.92,2.15534764]
[1729379443284,93.495689,159.0,158.9,23.776884]
[1729379443588,93.495689,159.0,158.91,2.15553317]
[1729379443785,93.495689,159.0,158.92,2.15553317]
[1729379444083,93.495689,159.0,158.93,2.15553317]
[1729379444265,93.495689,159.0,158.94,2.15553317]
[1729379444468,93.495689,159.0,158.95,2.15553317]
[1729379444662,93.495689,159.0,158.96,2.15553317]
[1729379444867,93.495689,159.0,158.9,23.776884]
[1729379445074,93.495689,159.0,158.91,2.15568888]
[1729379445376,93.495689,159.0,158.92,2.15568888]
[1729379445560,93.495689,159.0,158.93,2.15568888]
[1729379445761,93.495689,159.0,158.94,2.15568888]
[1729379445982,93.495689,159.0,158.95,2.15568888]
[1729379446182,93.495689,159.0,158.96,2.15568888]
[1729379446479,93.495689,159.0,158.9,23.776884]
[1729379446684,93.495689,159.0,158.91,2.15595762]
[1729379446887,93.495689,159.0,158.92,2.15595762]
[1729379447085,93.495689,159.0,158.9,23.776884]
[1729379447263,93.495689,159.0,158.91,2.15603207]
[1729379447463,93.495689,159.0,158.92,2.15603207]
[1729379447665,93.495689,159.0,158.93,2.15603207]
[1729379447883,93.495689,159.0,158.94,2.15603207]
[1729379448082,93.495689,159.0,158.95,2.15603207]
[1729379448258,93.495689,159.0,158.96,2.15603207]
[1729379448460,93.495689,159.0,158.9,23.776884]
[1729379448760,93.495689,159.0,158.91,2.15646868]
[1729379448958,93.495689,159.0,158.92,2.15646868]
[1729379449160,93.495689,159.0,158.93,2.15646868]
[1729379449467,93.495689,159.0,158.94,2.15646868]
[1729379449666,93.495689,159.0,158.95,2.15646868]
[1729379449867,93.495689,159.0,158.96,2.15646868]
[1729379450075,93.495689,159.0,158.9,26.34362277]
[1729379450281,93.495689,159.0,158.91,2.15652863]
[1729379450493,93.495689,159.0,158.92,2.15652863]
[1729379450669,93.495689,159.0,158.93,2.15652863]
[1729379450983,93.495689,159.0,158.94,2.15652863]
[1729379451185,93.495689,159.0,158.95,2.15652863]
[1729379451399,93.495689,159.0,158.96,2.15652863]
[1729379451590,93.495689,159.0,158.97,2.15648223]
[1729379451782,93.495689,159.0,158.9,26.34362277]
[1729379451986,93.495689,159.0,158.92,23.776884]
[1729379452185,93.495689,159.0,158.91,2.15648367]
[1729379452186,93.495689,159.0,158.93,2.15648367]
[1729379452391,93.495689,159.0,158.9,26.44362277]
[1729379452392,93.495689,159.0,158.94,2.15648367]
[1729379452602,93.495689,159.0,158.95,2.15648367]
[1729379452898,93.495689,159.0,158.96,2.15648367]
[1729379453102,93.495689,159.0,158.97,2.15648367]
[1729379453305,93.495689,159.0,158.9,26.44362277]
[1729379453473,93.495689,159.0,158.92,23.776884]
[1729379453676,93.495689,159.0,158.93,2.15638287]
[1729379453883,93.495689,159.0,158.94,2.15638287]
[1729379454092,93.495689,159.0,158.95,2.15638287]
[1729379454290,93.495689,159.0,158.96,2.15638287]
[1729379454504,93.495689,159.0,158.97,2.15638287]
[1729379454709,93.495689,159.0,158.9,26.44362277]
[1729379454879,93.495689,159.0,158.92,23.776884]
[1729379455078,93.495689,159.0,158.93,2.15665194]
[1729379455295,93.495689,159.0,158.94,2.15665194]
[1729379455494,93.495689,159.0,158.9,26.44362277]
[1729379455495,93.495689,159.0,158.95,2.15665194]
[1729379455685,93.495689,159.0,158.96,2.15665194]
[1729379455883,93.495689,159.0,158.97,2.15665194]
[1729379456186,93.495689,159.0,158.9,26.44362277]
[1729379456388,93.495689,159.0,158.92,23.776884]
[1729379456589,93.495689,159.0,158.93,2.15652294]
[1729379456796,93.495689,159.0,158.94,2.15652294]
[1729379456994,93.495689,159.0,158.95,2.15652294]
[1729379457198,93.495689,159.0,158.96,2.15652294]
[1729379457503,93.495689,159.0,158.97,2.15652294]
[1729379457704,93.495689,159.0,158.9,26.44362277]
[1729379458001,77.768489,159.0,158.95,23.776884]
[1729379458205,77.768489,159.0,158.96,2.1555457]
[1729379458393,77.768489,159.0,158.97,2.1555457]
[1729379458597,77.768489,159.0,158.98,2.15513749]
[1729379458887,77.768489,159.0,158.99,2.15513749]
[1729379462784,77.768489,159.0,158.99,41.13752149]
[1729379463217,77.768489,159.0,158.99,17.36063749]
[1729379463380,77.768489,159.0,158.99,48.26777308]
[1729379466725,77.768489,159.0,158.99,51.49407216]
[1729379468334,77.768489,159.0,158.99,51.49309351]
[1729379471409,77.768489,159.0,158.99,51.48091347]
[1729379474949,77.768489,159.0,158.99,49.33463761]
[1729379475246,77.768489,159.0,158.99,51.47619652]
[1729379475835,77.768489,159.0,158.99,71.47619652]
[1729379477248,77.768489,159.0,158.99,12.49381252]
[1729379477449,77.768489,159.0,158.99,9.27449495]
[1729379478641,77.768489,159.0,158.99,7.13025159]
[1729379479924,77.768489,159.0,158.99,9.27306175]
[1729379484653,77.768489,159.0,158.99,2.14281016]
[1729379484836,77.768489,159.0,158.97,25.36208052]
[1729379485172,77.768489,159.0,158.98,5.36208052]
[1729379486226,77.768489,159.0,158.98,5.3607777]
[1729379489751,77.768489,159.0,158.97,20.0]
[1729379489950,77.768489,159.0,158.98,5.36054635]
[1729379493454,77.768489,159.0,158.97,20.0]
[1729379493758,77.768489,159.0,158.98,5.3628596]
[1729379494950,0.6581368,159.13,159.06,0.1]
[1729379495150,0.6581368,159.13,159.07,0.2]
[1729379495361,0.6581368,159.13,159.08,20.0]
[1729379495645,0.6581368,159.13,159.07,19.07815339]
[1729379495646,0.6581368,159.13,159.11,0.1]
[1729379495969,0.6581368,159.13,159.12,38.97815339]
[1729379496174,0.6581368,159.13,159.12,44.32791454]
[1729379496476,0.6581368,159.13,159.12,44.32233255]
[1729379497271,0.6581368,159.13,159.12,68.19419122]
[1729379497469,0.6581368,159.13,159.12,68.09419122]
[1729379498266,0.6581368,159.13,159.12,68.19419122]
[1729379498445,100.0,159.22,159.18,0.1]
[1729379498640,100.0,159.22,159.19,8.06408492]
[1729379498841,100.0,159.22,159.19,8.16408492]
[1729379499240,100.0,159.22,159.19,8.06408492]
[1729379499440,100.0,159.22,159.2,20.1]
[1729379499662,100.0,159.22,159.21,43.876884]
[1729379499866,100.0,159.22,159.21,51.94096892]
[1729379500251,100.0,159.22,159.21,62.75503739]
[1729379501563,1.63407832,159.22,159.21,64.87212051]
[1729379502158,1.63407832,159.22,159.21,62.75503739]
[1729379503069,1.63407832,159.22,159.21,64.86939269]
[1729379503367,1.63407832,159.22,159.21,62.75503739]
[1729379503572,1.63407832,159.22,159.21,64.86685545]
[1729379503863,1.63407832,159.22,159.21,62.75503739]
[1729379506045,1.63407832,159.22,159.21,62.85503739]
[1729379507645,1.63407832,159.22,159.21,31.01406847]
[1729379508766,1.63407832,159.22,159.21,54.79095247]
[1729379509156,1.63407832,159.22,159.21,54.69095247]
[1729379509361,1.63407832,159.22,159.21,62.85503739]
[1729379510350,1.63407832,159.22,159.21,62.75503739]
[1729379510552,1.63407832,159.22,159.21,62.85503739]
[1729379511756,1.63407832,159.22,159.21,62.75503739]
[1729379511960,1.63407832,159.22,159.21,39.07815339]
[1729379512402,1.63407832,159.22,159.21,38.97815339]
[1729379512883,1.63407832,159.22,159.21,39.07815339]
[1729379513192,1.63407832,159.22,159.21,62.75503739]
[1729379514060,1.63407832,159.22,159.21,62.85503739]
[1729379515208,1.63407832,159.22,159.21,62.75503739]
[1729379515398,1.63407832,159.22,159.21,62.85503739]
[1729379515763,1.63407832,159.22,159.21,62.75503739]
[1729379515963,1.63407832,159.22,159.21,62.85503739]
[1729379519992,1.63407832,159.22,159.21,8.16408492]
[1729379520490,1.63407832,159.22,159.21,8.26408492]
[1729379520880,1.63407832,159.22,159.21,17.92389784]
[1729379521397,1.63407832,159.22,159.21,41.70078184]
[1729379521891,1.63407832,159.22,159.21,61.70078184]
[1729379522969,1.63407832,159.22,159.21,61.60078184]
[1729379524406,1.63407832,159.22,159.21,61.70078184]
[1729379525300,1.63407832,159.22,159.21,61.60078184]
[1729379525478,1.63407832,159.22,159.21,61.70078184]
[1729379526092,1.63407832,159.22,159.21,61.60078184]
[1729379526587,1.63407832,159.22,159.21,61.70078184]
[1729379527297,1.63407832,159.22,159.21,61.60078184]
[1729379527473,1.63407832,159.22,159.21,61.70078184]
[1729379533796,1.63407832,159.22,159.21,70.12081695]
[1729379534098,0.6423024,159.29,159.28,0.1]
[1729379534687,0.6423024,159.29,159.28,43.876884]
[1729379536288,0.6423024,159.29,159.28,51.11185781]
[1729379537198,0.6423024,159.29,159.28,27.23497381]
[1729379540389,0.6423024,159.29,159.28,30.43154616]
[1729379540589,0.6423024,159.29,159.28,54.20843016]
[1729379541202,0.6423024,159.29,159.28,54.30843016]
[1729379541618,16.5965,159.34,159.31,0.1]
[1729379541813,16.5965,159.34,159.32,3.19657235]
[1729379542109,16.5965,159.34,159.33,3.19657235]
[1729379543197,16.5965,159.34,159.32,3.19657235]
[1729379543401,16.5965,159.34,159.29,20.0]
[1729379543698,16.5965,159.34,159.33,3.20726403]
[1729379546995,16.5965,159.34,159.29,0.1]
[1729379547307,16.5965,159.34,159.32,20.0]
[1729379547508,16.5965,159.34,159.33,3.21382307]
[1729379549497,16.5965,159.34,159.24,0.1]
[1729379549721,22.8724,159.34,159.24,0.1]
[1729379549923,6.2764,159.33,159.22,0.1]
[1729379550419,16.5871,159.32,159.22,0.1]
[1729379551009,6.6493,159.3,159.21,0.1]
[1729379551209,6.6493,159.3,159.2,9.65981292]
[1729379551210,16.5871,159.29,159.2,9.65981292]
[1729379551520,16.5871,159.29,159.19,6.54757868]
[1729379552126,16.5871,159.29,159.19,6.64757868]
[1729379552312,16.5871,159.29,159.19,6.54757868]
[1729379552817,16.5871,159.29,159.2,20.0]
[1729379553021,22.8652,159.29,159.2,20.0]
[1729379553205,6.2786,159.27,159.19,6.54757868]
[1729379553523,16.5871,159.29,159.19,6.54757868]
[1729379554318,16.5871,159.29,159.19,6.64757868]
[1729379554507,16.5871,159.29,159.2,2.13338833]
[1729379554701,16.5871,159.29,159.22,20.0]
[1729379555300,16.5871,159.29,159.23,2.13611414]
[1729379556421,16.5871,159.29,159.24,2.13611414]
[1729379556828,16.5871,159.34,159.26,23.776884]
[1729379557032,16.5871,159.34,159.27,22.13611414]
[1729379557333,16.5871,159.34,159.28,2.13611414]
[1729379557715,22.8631,159.34,159.24,20.0]
[1729379557914,22.8631,159.34,159.25,2.13803928]
[1729379558125,22.8631,159.34,159.26,2.13803928]
[1729379558331,22.3631,159.34,159.27,2.13803928]
[1729379558631,22.3631,159.34,159.24,20.0]
[1729379558938,22.3631,159.34,159.25,2.13803928]
[1729379559234,22.3631,159.34,159.26,2.13803928]
[1729379559432,22.3631,159.34,159.27,2.13803928]
[1729379559615,22.3631,159.34,159.25,2.13803928]
[1729379559822,22.3631,159.34,159.26,2.13803928]
[1729379560024,22.3631,159.34,159.27,2.13803928]
[1729379560239,22.3631,159.34,159.24,20.0]
[1729379560427,22.3631,159.34,159.25,2.14048939]
[1729379560636,22.3631,159.34,159.26,2.14048939]
[1729379560819,22.3631,159.34,159.27,2.14048939]
[1729379561026,22.3631,159.34,159.24,20.0]
[1729379561336,22.3631,159.34,159.25,2.14062452]
[1729379561509,22.3631,159.34,159.26,22.14062452]
[1729379561715,22.3631,159.34,159.26,20.0]
[1729379561906,22.3631,159.34,159.27,2.14069404]
[1729379562142,22.3631,159.34,159.24,20.0]
[1729379562316,22.3631,159.34,159.25,5.29858218]
[1729379562516,22.3631,159.34,159.26,22.14072641]
[1729379562715,22.3631,159.34,159.27,2.14072641]
[1729379562924,22.3631,159.34,159.26,20.0]
[1729379562925,6.2781,159.29,159.2,6.54667017]
[1729379563130,6.2781,159.29,159.21,5.3021213]
[1729379563335,6.2781,159.29,159.22,2.14209125]
[1729379563522,50.054284,159.31,159.23,2.14209125]
[1729379563736,49.554284,159.31,159.24,2.14209125]
[1729379563915,43.276884,159.31,159.21,3.16003005]
[1729379564120,6.2775,159.3,159.22,2.14169662]
[1729379564322,6.2775,159.3,159.23,2.14169662]
[1729379564647,6.2775,159.3,159.24,2.14169662]
[1729379564939,6.2775,159.3,159.22,2.14169662]
[1729379565134,6.2775,159.3,159.23,2.14169662]
[1729379565340,6.2775,159.3,159.24,2.14169662]
[1729379565537,6.2775,159.3,159.22,2.14169662]
[1729379565715,6.2775,159.3,159.23,2.14169662]
[1729379565917,6.2775,159.3,159.24,2.14169662]
[1729379566131,6.2775,159.3,159.22,2.14169662]
[1729379566324,6.2775,159.3,159.23,2.14169662]
[1729379566526,6.2775,159.3,159.24,2.14169662]
[1729379566724,6.2775,159.3,159.22,2.14169662]
[1729379567036,6.2775,159.3,159.23,2.14169662]
[1729379567343,6.2775,159.3,159.22,2.14169662]
[1729379567512,6.2775,159.3,159.23,2.14169662]
[1729379567718,6.2775,159.3,159.22,2.14169662]
[1729379567926,6.2775,159.3,159.23,2.14169662]
[1729379568119,6.2775,159.3,159.22,2.14169662]
[1729379568426,19.5,159.31,159.23,2.14169662]
[1729379568628,19.5,159.31,159.21,20.0]
[1729379568629,6.2778,159.3,159.22,2.14169662]
[1729379568926,6.2778,159.3,159.23,2.14169662]
[1729379569131,6.2778,159.3,159.22,2.14169662]
[1729379569315,19.5,159.31,159.21,20.0]
[1729379569520,19.5,159.31,159.22,2.14016962]
[1729379569844,6.2774,159.3,159.23,2.14016962]
[1729379570018,6.2774,159.3,159.22,2.14016962]
[1729379570214,6.2774,159.3,159.23,2.14016962]
[1729379570415,6.2774,159.3,159.22,2.14016962]
[1729379570719,6.2774,159.3,159.23,2.14016962]
[1729379570921,6.2774,159.3,159.22,2.14016962]
[1729379571948,6.2774,159.3,159.23,2.14016962]
[1729379572125,6.2774,159.3,159.22,2.14016962]
[1729379572326,25.777,159.31,159.23,2.14016962]
[1729379572524,25.777,159.31,159.22,2.14016962]
[1729379572723,25.777,159.31,159.23,2.14016962]
[1729379572927,25.777,159.31,159.22,2.14016962]
[1729379573131,29.78453621,159.32,159.23,2.14016962]
[1729379573435,23.2364,159.32,159.24,45.91705362]
[1729379573630,16.5871,159.32,159.26,20.0]
[1729379573933,16.5871,159.32,159.27,2.14016962]
[1729379574332,16.5871,159.32,159.28,2.14016962]
[1729379574531,16.5871,159.32,159.27,2.14016962]
[1729379574726,16.5871,159.32,159.28,2.14016962]
[1729379574927,16.5871,159.32,159.27,2.14016962]
[1729379575138,16.5871,159.32,159.28,2.14016962]
[1729379575340,16.5871,159.32,159.27,2.14016962]
[1729379575539,16.5871,159.32,159.28,2.14016962]
[1729379575741,16.5871,159.32,159.27,2.14016962]
[1729379575950,16.5871,159.32,159.28,2.14016962]
[1729379576125,16.5871,159.32,159.27,2.14016962]
[1729379576424,16.5871,159.32,159.28,2.14016962]
[1729379576752,16.5871,159.32,159.27,2.14016962]
[1729379577046,16.5871,159.32,159.28,2.14016962]
[1729379577253,16.5871,159.32,159.27,2.14016962]
[1729379577552,16.5871,159.32,159.28,2.13712849]
[1729379577730,16.5871,159.32,159.29,2.13712849]
[1729379577930,22.8262,159.36,159.28,20.0]
[1729379578135,22.8262,159.36,159.29,2.13712849]
[1729379578337,22.8262,159.36,159.3,2.13712849]
[1729379578533,22.8262,159.36,159.29,2.13712849]
[1729379578726,22.8262,159.36,159.3,2.13712849]
[1729379579244,22.8262,159.36,159.29,20.0]
[1729379579452,22.8262,159.36,159.3,2.13712849]
[1729379580029,22.8262,159.36,159.29,20.0]
[1729379580229,22.8262,159.36,159.3,2.13712849]
[1729379580424,22.8262,159.36,159.29,20.0]
[1729379580849,22.8262,159.36,159.3,2.1360867]
[1729379581536,22.8262,159.36,159.29,20.0]
[1729379581739,22.8262,159.36,159.3,2.1360867]
[1729379581941,22.8262,159.36,159.29,23.776884]
[1729379582135,22.8262,159.36,159.3,2.1360867]
[1729379582334,22.8262,159.36,159.3,20.0]
[1729379582537,22.8262,159.36,159.31,2.1360867]
[1729379583036,16.2335,159.36,159.31,2.1360867]
[1729379583228,22.8262,159.4,159.31,20.0]
[1729379583560,22.8262,159.4,159.32,2.13450675]
[1729379587244,22.8262,159.4,159.32,2.13318116]
[1729379587953,16.2335,159.4,159.32,2.13318116]
[1729379588138,16.2335,159.4,159.34,20.0]
[1729379589167,29.37392454,159.44,159.34,20.0]
[1729379590242,6.2723,159.43,159.32,20.0]
[1729379590460,6.2723,159.43,159.33,2.13039214]
[1729379590832,29.37392454,159.44,159.33,2.13049111]
[1729379591055,29.37392454,159.44,159.35,20.0]
[1729379591355,6.2723,159.43,159.35,20.0]
[1729379591554,6.2723,159.43,159.34,20.0]
[1729379592344,6.2723,159.43,159.31,9.65981292]
[1729379592345,6.2733,159.41,159.31,9.65981292]
[1729379592548,6.2733,159.41,159.32,2.12993643]
[1729379593748,23.776884,159.43,159.32,22.12993643]
[1729379593950,20.0,159.42,159.32,20.0]
[1729379594155,6.2731,159.41,159.32,20.0]
[1729379596758,20.0,159.42,159.32,20.0]
[1729379597260,26.2727,159.42,159.32,20.0]
[1729379598762,0.12961381,159.33,159.32,20.0]